[Event "Cesenatico Open 2019"]
[Site "Cesenatico"]
[Date "2019.09.04"]
[Round "4"]
[White "Mrdja, Milan"]
[Black "Marzano, Carlo"]
[Result "1/2-1/2"]
[ECO "C78"]
[WhiteElo "2279"]
[BlackElo "2109"]
[Annotator "NA"]
[PlyCount "33"]
[EventDate "2019.09.01"]
[EventType "swiss"]
[EventCountry "ITA"]
[SourceTitle "playchess.com"]
[Source "ChessBase"]
[SourceQuality "1"]
[TimeControl "40/6000:900"]

1. e4 {[%emt 0:26:00]} e5 {[%emt 0:00:00]} 2. Nf3 {[%emt 0:00:00]} Nc6 {[%emt 0:25:00]} 3. Bb5 {[%emt 0:00:00]} a6 {[%emt 0:00:00]} 4. Ba4 {[%emt 0:00:00]} Nf6 5. O-O {[%emt 0:00:00]} b5 {[%emt 0:00:00]} 6. Bb3 {[%emt 0:00:00]} Bb7 {[%emt 0:00:00]} 7. Re1 {[%emt 0:00:00]} Bc5 {[%emt 0:00:00]} 8. c3 {[%emt 0:00:00]} d6 {[%emt 0:00:00]} 9. d4 {[%emt 0:01:00]} Bb6 {[%emt 0:00:00]} 10. a4 h6 {[%emt 0:00:00]} 11. Na3 {[%emt 0:04:00]} O-O {[%emt 0:00:00]} 12. Be3 {[%emt 0:16:00]} exd4 {[%emt 0:00:00]} 13. cxd4 {[%emt 0:06:00]} Na5 14. d5 {[%emt 0:00:00]} Bxe3 {[%emt 0:00:00]} 15. Rxe3 {[%emt 0:00:00]} Nxb3 {[%emt 0:00:00]} 16. Qxb3 {[%emt 0:03:00]} c6 {[%emt 0:00:00]} 17. dxc6 {[%emt 0:00:00]} 1/2-1/2

[Event "Cesenatico Open 2019"]
[Site "Cesenatico"]
[Date "2019.09.04"]
[Round "4"]
[White "Damia, Angelo"]
[Black "Miotto, Alberto"]
[Result "1-0"]
[ECO "A00"]
[WhiteElo "2240"]
[BlackElo "1950"]
[Annotator "NA"]
[PlyCount "93"]
[EventDate "2019.09.01"]
[EventType "swiss"]
[EventCountry "ITA"]
[SourceTitle "playchess.com"]
[Source "ChessBase"]
[SourceQuality "1"]
[TimeControl "40/6000:900"]

1. c3 {[%emt 0:10:00]} d5 {[%emt 0:00:00]} 2. Qc2 {[%emt 0:00:00]} c5 {[%emt 0:09:00]} 3. d3 {[%emt 0:00:00]} Nc6 {[%emt 0:00:00]} 4. Nf3 {[%emt 0:00:00]} e6 5. e4 {[%emt 0:00:00]} Bd6 {[%emt 0:00:00]} 6. Bg5 {[%emt 0:00:00]} Nge7 {[%emt 0:00:00]} 7. Bh4 {[%emt 0:00:00]} d4 {[%emt 0:00:00]} 8. Nbd2 {[%emt 0:00:00]} e5 {[%emt 0:00:00]} 9. Be2 {[%emt 0:03:00]} h6 {[%emt 0:08:00]} 10. Nc4 Bc7 {[%emt 0:05:00]} 11. Bg3 {[%emt 0:08:00]} Ng6 {[%emt 0:06:00]} 12. h4 {[%emt 0:01:00]} Qf6 {[%emt 0:02:00]} 13. a4 {[%emt 0:04:00]} Nf4 {[%emt 0:00:00]} 14. Bxf4 {[%emt 0:01:00]} Qxf4 {[%emt 0:03:00]} 15. a5 {[%emt 0:01:00]} O-O {[%emt 0:00:00]} 16. Qb3 {[%emt 0:03:00]} Rb8 {[%emt 0:07:00]} 17. Qb5 Bd7 {[%emt 0:08:00]} 18. Qxc5 {[%emt 0:05:00]} b5 {[%emt 0:01:00]} 19. axb6 {[%emt 0:13:00]} axb6 {[%emt 0:00:00]} 20. Qd5 {[%emt 0:02:00]} Rfd8 21. Ncd2 {[%emt 0:02:00]} b5 {[%emt 0:00:00]} 22. cxd4 {[%emt 0:08:00]} Be8 {[%emt 0:12:00]} 23. g3 {[%emt 0:00:00]} Qf6 {[%emt 0:00:00]} 24. Qb3 {[%emt 0:01:00]} Nxd4 {[%emt 0:01:00]} 25. Nxd4 {[%emt 0:00:00]} Rxd4 {[%emt 0:04:00]} 26. Qc3 {[%emt 0:04:00]} Bd6 {[%emt 0:00:00]} 27. O-O {[%emt 0:03:00]} Bb4 {[%emt 0:00:00]} 28. Qc7 {[%emt 0:00:00]} Bd6 {[%emt 0:00:00]} 29. Qc3 {[%emt 0:00:00]} Bb4 {[%emt 0:00:00]} 30. Qc7 {[%emt 0:01:00]} Bd6 {[%emt 0:00:00]} 31. Qc2 {[%emt 0:00:00]} Bd7 {[%emt 0:00:00]} 32. Rfc1 {[%emt 0:07:00]} Rc8 33. Qd1 {[%emt 0:00:00]} Rd8 {[%emt 0:05:00]} 34. Ra6 {[%emt 0:00:00]} Qe7 35. Nf3 {[%emt 0:03:03]} Rb4 {[%emt 0:00:00]} 36. Qc2 {[%emt 0:00:00]} Rc8 37. Qxc8+ {[%emt 0:10:05]} Bxc8 38. Rxc8+ {[%emt 0:00:00]} Kh7 {[%emt 0:02:00]} 39. Raa8 {[%emt 0:00:35]} Kg6 {[%emt 0:00:00]} 40. h5+ {[%emt 0:02:50]} Kf6 {[%emt 0:00:00]} 41. Rc6 Ra4 {[%emt 0:00:00]} 42. Rxa4 {[%emt 0:09:05]} bxa4 {[%emt 0:29:13]} 43. d4 {[%emt 0:00:00]} Ke6 {[%emt 0:00:00]} 44. dxe5 {[%emt 0:00:00]} Qb7 {[%emt 0:00:00]} 45. Rxd6+ {[%emt 0:00:00]} Ke7 46. Nd4 {[%emt 0:00:00]} f6 {[%emt 0:00:00]} 47. Nc6+ {[%emt 0:00:00]} 1-0

[Event "Cesenatico Open 2019"]
[Site "Cesenatico"]
[Date "2019.09.04"]
[Round "4"]
[White "Di Trapani, Davide"]
[Black "Carbone, Stefano"]
[Result "1/2-1/2"]
[ECO "B12"]
[WhiteElo "2181"]
[BlackElo "2138"]
[Annotator "NA"]
[PlyCount "127"]
[EventDate "2019.09.01"]
[EventType "swiss"]
[EventCountry "ITA"]
[SourceTitle "playchess.com"]
[Source "ChessBase"]
[SourceQuality "1"]
[TimeControl "40/6000:900"]

1. e4 {[%emt 0:00:00]} c6 {[%emt 0:00:00]} 2. d4 {[%emt 0:00:00]} d5 {[%emt 0:00:00]} 3. e5 {[%emt 0:00:00]} Bf5 {[%emt 0:00:00]} 4. h4 {[%emt 0:00:00]} Qb6 5. g4 {[%emt 0:19:00]} Bd7 {[%emt 0:00:00]} 6. Nc3 {[%emt 0:00:00]} h5 {[%emt 0:00:00]} 7. gxh5 {[%emt 0:07:00]} e6 {[%emt 0:05:00]} 8. Na4 {[%emt 0:00:00]} Qa5+ {[%emt 0:02:00]} 9. c3 {[%emt 0:06:00]} c5 {[%emt 0:12:00]} 10. Nxc5 {[%emt 0:01:00]} Bxc5 {[%emt 0:00:00]} 11. dxc5 {[%emt 0:00:00]} Qxc5 {[%emt 0:19:00]} 12. Qg4 {[%emt 0:05:00]} Qf8 {[%emt 0:00:00]} 13. Nf3 {[%emt 0:09:00]} Nh6 {[%emt 0:00:00]} 14. Bxh6 {[%emt 0:01:00]} Rxh6 {[%emt 0:00:00]} 15. Rg1 {[%emt 0:00:00]} Nc6 {[%emt 0:00:00]} 16. O-O-O {[%emt 0:16:00]} O-O-O {[%emt 0:00:00]} 17. Qxg7 {[%emt 0:00:00]} Rxh5 {[%emt 0:00:00]} 18. Qxf8 {[%emt 0:07:00]} Rxf8 19. Rg5 {[%emt 0:00:00]} Rh6 {[%emt 0:00:00]} 20. Be2 {[%emt 0:00:00]} Be8 {[%emt 0:12:00]} 21. Rh1 {[%emt 0:05:00]} f6 {[%emt 0:04:00]} 22. exf6 {[%emt 0:00:00]} Rhxf6 {[%emt 0:00:00]} 23. h5 {[%emt 0:00:00]} Rh6 {[%emt 0:00:00]} 24. Rh2 {[%emt 0:03:00]} Rfh8 {[%emt 0:00:00]} 25. Nd4 {[%emt 0:01:00]} Nxd4 26. cxd4 {[%emt 0:00:00]} Kc7 {[%emt 0:03:00]} 27. Kd2 {[%emt 0:00:00]} Kd6 {[%emt 0:01:00]} 28. Ke3 {[%emt 0:00:00]} Ke7 {[%emt 0:01:00]} 29. Rh1 {[%emt 0:00:39]} Kf6 {[%emt 0:00:00]} 30. f4 {[%emt 0:00:08]} Bf7 {[%emt 0:24:50]} 31. Bg4 {[%emt 0:03:03]} Rc8 {[%emt 0:00:00]} 32. Rxd5 {[%emt 0:00:00]} Rg8 {[%emt 0:00:00]} 33. Rg5 {[%emt 0:07:02]} Rxg5 {[%emt 0:00:00]} 34. fxg5+ {[%emt 0:00:00]} Kxg5 {[%emt 0:00:00]} 35. Bf3 {[%emt 0:00:00]} b6 {[%emt 0:00:00]} 36. Ke4 {[%emt 0:00:00]} Rf6 {[%emt 0:00:00]} 37. Rg1+ Kh6 {[%emt 0:00:00]} 38. Rg3 {[%emt 0:02:41]} Rf5 {[%emt 0:12:31]} 39. a3 {[%emt 0:02:48]} Bxh5 {[%emt 0:00:00]} 40. Bxh5 {[%emt 0:00:00]} Rxh5 {[%emt 0:00:00]} 41. Rg8 {[%emt 0:01:29]} Rb5 {[%emt 0:00:00]} 42. b4 {[%emt 0:03:03]} a5 {[%emt 0:00:00]} 43. Kd3 {[%emt 0:01:05]} axb4 44. Kc4 {[%emt 0:00:00]} Rd5 {[%emt 0:00:00]} 45. axb4 {[%emt 0:00:00]} b5+ {[%emt 0:00:00]} 46. Kc3 {[%emt 0:00:00]} Kh7 {[%emt 0:00:00]} 47. Rg2 {[%emt 0:01:30]} e5 {[%emt 0:02:10]} 48. dxe5 {[%emt 0:00:09]} Rxe5 {[%emt 0:00:00]} 49. Kd4 {[%emt 0:00:00]} Rh5 {[%emt 0:00:00]} 50. Re2 {[%emt 0:00:00]} Kg7 {[%emt 0:01:48]} 51. Re5 {[%emt 0:00:43]} Rh4+ {[%emt 0:00:00]} 52. Kc5 {[%emt 0:00:35]} Kf6 {[%emt 0:00:00]} 53. Re2 Rh5+ {[%emt 0:00:00]} 54. Kc6 {[%emt 0:00:00]} Kf7 55. Rc2 {[%emt 0:00:44]} Ke7 {[%emt 0:00:00]} 56. Rc5 Rh8 {[%emt 0:01:43]} 57. Kc7 {[%emt 0:00:39]} Rh4 {[%emt 0:00:00]} 58. Re5+ {[%emt 0:00:00]} Kf6 {[%emt 0:00:00]} 59. Rxb5 {[%emt 0:00:00]} Ke6 {[%emt 0:00:27]} 60. Kb6 {[%emt 0:06:31]} Kd6 {[%emt 0:00:00]} 61. Ka5 {[%emt 0:00:44]} Kc7 {[%emt 0:00:00]} 62. Rc5+ {[%emt 0:00:00]} Kb7 {[%emt 0:00:23]} 63. Rb5+ {[%emt 0:00:37]} Kc7 {[%emt 0:00:00]} 64. Rc5+ {[%emt 0:00:00]} 1/2-1/2

[Event "Cesenatico Open 2019"]
[Site "Cesenatico"]
[Date "2019.09.04"]
[Round "4"]
[White "Paleologu, Vladimir"]
[Black "Schacher, Gerd"]
[Result "0-1"]
[ECO "B06"]
[WhiteElo "2105"]
[BlackElo "2311"]
[Annotator "NA"]
[PlyCount "84"]
[EventDate "2019.09.01"]
[EventType "swiss"]
[EventCountry "ITA"]
[SourceTitle "playchess.com"]
[Source "ChessBase"]
[SourceQuality "1"]
[TimeControl "40/6000:900"]

1. e4 {[%emt 0:01:00]} g6 {[%emt 0:00:00]} 2. d4 {[%emt 0:00:00]} Bg7 {[%emt 0:03:00]} 3. Nc3 {[%emt 0:02:00]} d6 {[%emt 0:00:00]} 4. Be3 {[%emt 0:01:00]} a6 5. Qd2 {[%emt 0:01:00]} Nd7 {[%emt 0:00:00]} 6. h4 {[%emt 0:02:00]} Ngf6 {[%emt 0:00:00]} 7. Bh6 {[%emt 0:04:00]} Bxh6 {[%emt 0:19:00]} 8. Qxh6 c5 {[%emt 0:01:00]} 9. dxc5 {[%emt 0:08:00]} Nxc5 {[%emt 0:04:00]} 10. f3 {[%emt 0:01:00]} Be6 {[%emt 0:08:00]} 11. Nge2 {[%emt 0:05:00]} Qa5 12. a3 {[%emt 0:06:00]} Qc7 {[%emt 0:36:00]} 13. O-O-O {[%emt 0:40:00]} O-O-O {[%emt 0:00:00]} 14. Nf4 {[%emt 0:00:00]} Kb8 {[%emt 0:01:00]} 15. g4 {[%emt 0:00:00]} Rc8 {[%emt 0:02:00]} 16. Nxe6 {[%emt 0:00:00]} Nxe6 {[%emt 0:00:00]} 17. Qd2 {[%emt 0:00:00]} h6 {[%emt 0:07:48]} 18. Bd3 {[%emt 0:07:00]} g5 {[%emt 0:00:00]} 19. hxg5 {[%emt 0:00:00]} hxg5 {[%emt 0:00:36]} 20. Nd5 {[%emt 0:03:24]} Nxd5 {[%emt 0:01:15]} 21. exd5 {[%emt 0:00:00]} Nd4 22. Kb1 {[%emt 0:03:35]} Nxf3 {[%emt 0:03:22]} 23. Qe3 Rxh1 {[%emt 0:01:27]} 24. Rxh1 {[%emt 0:06:11]} Ne5 25. Bf5 {[%emt 0:02:04]} Rg8 {[%emt 0:00:00]} 26. Rh5 Qc5 {[%emt 0:01:35]} 27. Qd2 {[%emt 0:02:02]} Nc4 {[%emt 0:07:53]} 28. Qc1 {[%emt 0:02:40]} Qxd5 {[%emt 0:00:00]} 29. Rxg5 {[%emt 0:00:00]} Nd2+ {[%emt 0:00:00]} 30. Qxd2 {[%emt 0:00:00]} Qxd2 {[%emt 0:00:00]} 31. Rxg8+ {[%emt 0:00:00]} Ka7 {[%emt 0:00:00]} 32. Rg7 {[%emt 0:00:00]} e6 {[%emt 0:00:00]} 33. Bd3 {[%emt 0:00:40]} e5 {[%emt 0:01:26]} 34. Rxf7 {[%emt 0:00:46]} e4 {[%emt 0:00:00]} 35. Bc4 {[%emt 0:00:00]} d5 {[%emt 0:00:00]} 36. Bf1 {[%emt 0:00:06]} Qd1+ {[%emt 0:00:00]} 37. Ka2 {[%emt 0:00:00]} Qxg4 {[%emt 0:00:00]} 38. c4 {[%emt 0:00:00]} d4 {[%emt 0:00:00]} 39. Re7 {[%emt 0:00:00]} d3 {[%emt 0:00:00]} 40. c5 {[%emt 0:00:00]} Qg5 {[%emt 0:00:00]} 41. Rc7 {[%emt 0:00:00]} Kb8 {[%emt 0:00:00]} 42. Rd7 {[%emt 0:00:00]} Qf5 {[%emt 0:00:00]} 0-1

[Event "Cesenatico Open 2019"]
[Site "Cesenatico"]
[Date "2019.09.04"]
[Round "4"]
[White "Kacani, Kirk"]
[Black "Medici, Simone"]
[Result "1/2-1/2"]
[ECO "A30"]
[WhiteElo "2091"]
[BlackElo "2201"]
[Annotator "NA"]
[PlyCount "137"]
[EventDate "2019.09.01"]
[EventType "swiss"]
[EventCountry "ITA"]
[SourceTitle "playchess.com"]
[Source "ChessBase"]
[SourceQuality "1"]
[TimeControl "40/6000:900"]

1. c4 {[%emt 0:00:00]} b6 {[%emt 0:00:00]} 2. Nf3 {[%emt 0:00:00]} Nf6 {[%emt 0:00:00]} 3. g3 {[%emt 0:00:00]} Bb7 {[%emt 0:01:00]} 4. Bg2 {[%emt 0:00:00]} g6 5. b3 {[%emt 0:02:00]} Bg7 {[%emt 0:04:00]} 6. Bb2 {[%emt 0:00:00]} O-O {[%emt 0:00:00]} 7. O-O {[%emt 0:00:00]} c5 {[%emt 0:04:00]} 8. Nc3 {[%emt 0:10:00]} Nc6 {[%emt 0:03:00]} 9. d4 {[%emt 0:00:00]} Nxd4 {[%emt 0:01:00]} 10. Nxd4 {[%emt 0:00:00]} Bxg2 {[%emt 0:00:00]} 11. Kxg2 {[%emt 0:00:00]} cxd4 {[%emt 0:00:00]} 12. Qxd4 {[%emt 0:00:00]} d6 {[%emt 0:03:00]} 13. Nd5 {[%emt 0:07:00]} Qd7 {[%emt 0:06:00]} 14. e4 {[%emt 0:11:00]} Qb7 {[%emt 0:02:00]} 15. f3 {[%emt 0:00:00]} Rac8 {[%emt 0:04:00]} 16. Rac1 {[%emt 0:02:00]} Rfd8 {[%emt 0:06:00]} 17. Rfd1 {[%emt 0:00:00]} Rc5 {[%emt 0:03:00]} 18. b4 {[%emt 0:30:00]} Rcc8 {[%emt 0:38:00]} 19. Qd2 {[%emt 0:13:00]} Ne8 {[%emt 0:00:00]} 20. Bd4 {[%emt 0:04:00]} e6 {[%emt 0:00:00]} 21. Ne3 {[%emt 0:01:55]} Bh6 {[%emt 0:00:00]} 22. Qe2 {[%emt 0:00:00]} Rd7 {[%emt 0:00:00]} 23. Rc2 {[%emt 0:04:49]} e5 {[%emt 0:00:00]} 24. Ng4 {[%emt 0:04:50]} Bf8 {[%emt 0:00:00]} 25. Bf2 {[%emt 0:00:28]} f5 26. exf5 {[%emt 0:00:01]} gxf5 {[%emt 0:02:00]} 27. Ne3 {[%emt 0:00:00]} Rf7 {[%emt 0:02:00]} 28. Nd5 {[%emt 0:01:35]} Qd7 {[%emt 0:00:00]} 29. c5 {[%emt 0:03:07]} Qa4 {[%emt 0:02:51]} 30. Rdc1 {[%emt 0:02:23]} bxc5 {[%emt 0:00:00]} 31. bxc5 {[%emt 0:00:04]} Rc6 {[%emt 0:09:26]} 32. Rc4 {[%emt 0:00:00]} Qa5 {[%emt 0:01:11]} 33. Nb4 {[%emt 0:01:06]} Rc8 34. cxd6 {[%emt 0:00:01]} Rxc4 {[%emt 0:01:28]} 35. Qxc4 {[%emt 0:00:00]} Nxd6 {[%emt 0:00:00]} 36. Qb3 {[%emt 0:00:00]} e4 37. Nc6 {[%emt 0:00:00]} exf3+ {[%emt 0:03:54]} 38. Qxf3 {[%emt 0:00:03]} Qxa2 {[%emt 0:00:04]} 39. Kh1 {[%emt 0:00:05]} Ne4 40. Bd4 {[%emt 0:00:00]} Bh6 {[%emt 0:00:00]} 41. Ra1 Qd5 {[%emt 0:01:35]} 42. Ra6 {[%emt 0:02:39]} Rc7 {[%emt 0:09:11]} 43. Ra5 {[%emt 0:06:34]} Qxc6 {[%emt 0:00:41]} 44. Rxf5 {[%emt 0:05:17]} Ng5 {[%emt 0:04:36]} 45. Qxc6 {[%emt 0:00:00]} Rxc6 {[%emt 0:00:00]} 46. Bxa7 {[%emt 0:00:00]} Ne4 47. Kg2 {[%emt 0:00:00]} Rc2+ {[%emt 0:00:00]} 48. Kf3 {[%emt 0:00:25]} Nd6 {[%emt 0:00:23]} 49. Rh5 {[%emt 0:00:00]} Nf7 {[%emt 0:00:00]} 50. Bb8 {[%emt 0:00:00]} Kg7 {[%emt 0:00:00]} 51. h4 {[%emt 0:00:02]} Bd2 {[%emt 0:00:05]} 52. Bf4 {[%emt 0:00:01]} Be1 {[%emt 0:00:00]} 53. Rb5 {[%emt 0:00:00]} Rf2+ {[%emt 0:00:00]} 54. Kg4 {[%emt 0:00:00]} Rg2 {[%emt 0:00:00]} 55. Rb7 {[%emt 0:00:00]} Re2 {[%emt 0:00:00]} 56. h5 {[%emt 0:00:00]} Re6 {[%emt 0:00:00]} 57. Kf3 {[%emt 0:00:00]} h6 {[%emt 0:00:00]} 58. Kg4 {[%emt 0:00:00]} Bc3 {[%emt 0:00:00]} 59. Rb3 {[%emt 0:00:00]} Bf6 {[%emt 0:00:00]} 60. Rb7 {[%emt 0:00:00]} Be7 {[%emt 0:00:00]} 61. Rb5 {[%emt 0:00:00]} Nd8 {[%emt 0:00:00]} 62. Re5 {[%emt 0:00:00]} Bf6 {[%emt 0:00:00]} 63. Rxe6 {[%emt 0:00:00]} Nxe6 {[%emt 0:00:00]} 64. Bxh6+ {[%emt 0:00:00]} Kf7 {[%emt 0:00:00]} 65. Bf4 {[%emt 0:00:00]} Nd4 {[%emt 0:00:00]} 66. Be3 {[%emt 0:00:00]} Ne6 {[%emt 0:00:00]} 67. Kf3 {[%emt 0:00:00]} Kg7 {[%emt 0:00:00]} 68. g4 {[%emt 0:00:00]} Bg5 {[%emt 0:00:00]} 69. Ke4 {[%emt 0:00:00]} 1/2-1/2

[Event "Cesenatico Open 2019"]
[Site "Cesenatico"]
[Date "2019.09.05"]
[Round "5"]
[White "Medici, Simone"]
[Black "Cocconcelli, Lorenzo"]
[Result "1-0"]
[ECO "D11"]
[WhiteElo "2201"]
[BlackElo "2113"]
[Annotator "ChessBase"]
[PlyCount "195"]
[EventDate "2019.09.01"]
[EventType "swiss"]
[EventCountry "ITA"]
[SourceTitle "playchess.com"]
[Source "ChessBase"]
[SourceQuality "1"]
[TimeControl "40/6000:900"]

1. d4 {[%emt 0:01:00]} d5 {[%emt 0:00:00]} 2. c4 {[%emt 0:00:00]} c6 {[%emt 0:01:00]} 3. Nf3 {[%emt 0:00:00]} Nf6 {[%emt 0:00:00]} 4. Nbd2 {[%emt 0:00:00]} Bf5 {[%emt 0:02:00]} 5. Qb3 {[%emt 0:01:00]} Qb6 {[%emt 0:02:00]} 6. e3 e6 {[%emt 0:00:00]} 7. c5 {[%emt 0:02:00]} Qc7 {[%emt 0:05:00]} 8. Qc3 {[%emt 0:10:00]} Nbd7 {[%emt 0:04:00]} 9. b4 {[%emt 0:00:00]} Be7 {[%emt 0:02:00]} 10. Be2 {[%emt 0:00:00]} O-O {[%emt 0:01:00]} 11. O-O {[%emt 0:00:00]} b6 {[%emt 0:09:00]} 12. Bb2 {[%emt 0:00:00]} bxc5 {[%emt 0:06:00]} 13. bxc5 {[%emt 0:02:00]} a5 14. h3 {[%emt 0:04:00]} Rfe8 {[%emt 0:05:00]} 15. Rfc1 {[%emt 0:21:00]} h6 {[%emt 0:04:00]} 16. Bd3 {[%emt 0:00:00]} Bf8 {[%emt 0:02:00]} 17. Qc2 {[%emt 0:00:00]} Bxd3 {[%emt 0:03:00]} 18. Qxd3 {[%emt 0:00:00]} g6 19. Rab1 {[%emt 0:00:00]} Bg7 {[%emt 0:01:00]} 20. Ne5 {[%emt 0:00:00]} Nxe5 21. dxe5 {[%emt 0:00:00]} Nd7 {[%emt 0:06:00]} 22. f4 {[%emt 0:14:00]} Qa7 {[%emt 0:02:00]} 23. Bd4 {[%emt 0:00:00]} Bf8 {[%emt 0:00:00]} 24. Qc3 {[%emt 0:00:00]} Reb8 {[%emt 0:01:00]} 25. Rxb8 {[%emt 0:00:00]} Rxb8 {[%emt 0:00:00]} 26. Nb3 {[%emt 0:00:00]} Rb5 {[%emt 0:04:00]} 27. a4 {[%emt 0:00:00]} Rb4 {[%emt 0:01:00]} 28. Ra1 {[%emt 0:00:00]} Be7 {[%emt 0:00:00]} 29. Kh2 {[%emt 0:19:00]} h5 {[%emt 0:13:00]} 30. g4 {[%emt 0:00:00]} Qa6 {[%emt 0:02:00]} 31. Ra2 {[%emt 0:00:00]} hxg4 {[%emt 0:02:00]} 32. hxg4 {[%emt 0:00:00]} Qf1 {[%emt 0:00:00]} 33. Kg3 {[%emt 0:00:00]} Bd8 {[%emt 0:09:06]} 34. Ra1 {[%emt 0:15:14]} Qc4 {[%emt 0:02:08]} 35. Qxc4 {[%emt 0:00:00]} Rxc4 {[%emt 0:00:00]} 36. Ra2 {[%emt 0:00:00]} Bc7 {[%emt 0:01:56]} 37. g5 {[%emt 0:00:00]} Nb8 38. Nd2 {[%emt 0:00:00]} Rb4 {[%emt 0:00:00]} 39. Bc3 Rb7 {[%emt 0:02:12]} 40. Rb2 {[%emt 0:00:00]} Rxb2 {[%emt 0:00:00]} 41. Bxb2 {[%emt 0:00:00]} Na6 {[%emt 0:06:29]} 42. Nb3 Bd8 {[%emt 0:02:15]} 43. Kf3 {[%emt 0:00:00]} Kf8 {[%emt 0:01:16]} 44. Ke2 {[%emt 0:06:38]} Ke8 {[%emt 0:02:08]} 45. Kd3 {[%emt 0:00:35]} Nb4+ 46. Kc3 {[%emt 0:00:03]} Kd7 {[%emt 0:02:53]} 47. Ba3 Na6 {[%emt 0:00:00]} 48. Kd4 {[%emt 0:06:49]} Kc8 {[%emt 0:00:00]} 49. Bc1 {[%emt 0:01:15]} Kb7 {[%emt 0:01:16]} 50. Bd2 {[%emt 0:04:45]} Nb4 51. Bxb4 {[%emt 0:00:00]} axb4 {[%emt 0:00:00]} 52. Kd3 {[%emt 0:00:00]} Be7 {[%emt 0:00:00]} 53. Na5+ {[%emt 0:00:48]} Kc7 {[%emt 0:00:28]} 54. Kd4 {[%emt 0:00:00]} Bf8 {[%emt 0:00:00]} 55. Nb3 {[%emt 0:00:00]} Kb7 {[%emt 0:00:00]} 56. Kd3 {[%emt 0:00:00]} Be7 {[%emt 0:00:00]} 57. Kc2 {[%emt 0:00:07]} Bf8 {[%emt 0:00:00]} 58. e4 {[%emt 0:00:14]} Be7 {[%emt 0:00:00]} 59. Kd2 {[%emt 0:00:00]} Bf8 {[%emt 0:00:00]} 60. Ke3 {[%emt 0:00:00]} Be7 {[%emt 0:00:00]} 61. Kf3 {[%emt 0:00:00]} Kc7 {[%emt 0:00:00]} 62. Kg4 {[%emt 0:03:26]} Bxc5 {[%emt 0:03:47]} 63. Nxc5 {[%emt 0:00:00]} Kb6 {[%emt 0:00:00]} 64. Nb3 {[%emt 0:00:00]} dxe4 {[%emt 0:00:00]} 65. Kg3 {[%emt 0:00:00]} c5 {[%emt 0:00:00]} 66. a5+ {[%emt 0:00:00]} Kc6 {[%emt 0:00:00]} 67. a6 {[%emt 0:00:00]} c4 {[%emt 0:00:30]} 68. Na5+ {[%emt 0:00:04]} Kb6 {[%emt 0:00:00]} 69. Nxc4+ {[%emt 0:00:00]} Kxa6 {[%emt 0:00:00]} 70. Kf2 {[%emt 0:00:00]} Kb5 {[%emt 0:00:00]} 71. Nd2 {[%emt 0:00:13]} Ka4 {[%emt 0:00:00]} 72. Ke3 {[%emt 0:00:00]} Ka3 {[%emt 0:00:00]} 73. Kxe4 {[%emt 0:00:00]} Kb2 {[%emt 0:00:00]} 74. Kd3 {[%emt 0:00:07]} Kc1 {[%emt 0:00:00]} 75. Nb3+ {[%emt 0:00:00]} Kd1 {[%emt 0:00:00]} 76. Nd4 {[%emt 0:00:01]} Ke1 {[%emt 0:00:00]} 77. Ke3 {[%emt 0:00:08]} Kf1 {[%emt 0:00:03]} 78. f5 {[%emt 0:00:00]} exf5 {[%emt 0:00:00]} 79. Nxf5 {[%emt 0:00:00]} gxf5 {[%emt 0:00:00]} 80. g6 {[%emt 0:00:01]} f4+ {[%emt 0:00:01]} 81. Kd2 {[%emt 0:00:00]} fxg6 {[%emt 0:00:00]} 82. e6 {[%emt 0:00:00]} b3 {[%emt 0:00:00]} 83. e7 {[%emt 0:00:00]} b2 {[%emt 0:00:00]} 84. Kc2 {[%emt 0:00:00]} f3 {[%emt 0:00:00]} 85. e8=Q {[%emt 0:00:00]} b1=Q+ {[%emt 0:00:00]} 86. Kxb1 f2 {[%emt 0:00:00]} 87. Qxg6 {[%emt 0:00:00]} Ke1 {[%emt 0:00:00]} 88. Qe4+ {[%emt 0:00:00]} Kd2 {[%emt 0:00:00]} 89. Qf3 {[%emt 0:00:00]} Ke1 {[%emt 0:00:00]} 90. Qe3+ {[%emt 0:00:00]} Kd1 {[%emt 0:00:00]} 91. Qf3+ {[%emt 0:00:00]} Ke1 {[%emt 0:00:00]} 92. Qg3 {[%emt 0:00:00]} Ke2 {[%emt 0:00:00]} 93. Qg2 {[%emt 0:00:00]} Ke1 {[%emt 0:00:00]} 94. Kc1 {[%emt 0:00:00]} Ke2 {[%emt 0:00:00]} 95. Qe4+ {[%emt 0:00:00]} Kf1 {[%emt 0:00:00]} 96. Kd2 {[%emt 0:00:00]} Kg1 {[%emt 0:00:00]} 97. Qg4+ {[%emt 0:00:00]} Kf1 {[%emt 0:00:00]} 98. Ke3 {[%emt 0:00:00]} 1-0

[Event "Cesenatico Open 2019"]
[Site "Cesenatico"]
[Date "2019.09.05"]
[Round "5"]
[White "Carbone, Stefano"]
[Black "Stromboli, Carlo"]
[Result "1/2-1/2"]
[ECO "D02"]
[WhiteElo "2138"]
[BlackElo "2270"]
[Annotator "ChessBase"]
[PlyCount "36"]
[EventDate "2019.09.01"]
[EventType "swiss"]
[EventCountry "ITA"]
[SourceTitle "playchess.com"]
[Source "ChessBase"]
[SourceQuality "1"]
[TimeControl "40/6000:900"]

1. Nf3 {[%emt 0:00:00]} d5 {[%emt 0:14:00]} 2. g3 {[%emt 0:00:00]} Nc6 {[%emt 0:00:00]} 3. d4 {[%emt 0:00:00]} Bf5 {[%emt 0:04:00]} 4. Bg2 {[%emt 0:00:00]} Nb4 5. Na3 {[%emt 0:00:00]} e6 {[%emt 0:04:00]} 6. c3 {[%emt 0:00:00]} Nc6 {[%emt 0:00:00]} 7. Nc2 {[%emt 0:00:00]} Nf6 {[%emt 0:04:00]} 8. O-O {[%emt 0:27:00]} h6 {[%emt 0:01:00]} 9. Ne3 {[%emt 0:00:00]} Be4 {[%emt 0:05:00]} 10. b3 Bd6 {[%emt 0:15:00]} 11. Bb2 {[%emt 0:00:00]} O-O {[%emt 0:04:00]} 12. c4 {[%emt 0:03:00]} Re8 {[%emt 0:05:00]} 13. Rc1 {[%emt 0:01:00]} Bf8 {[%emt 0:00:00]} 14. Ne5 {[%emt 0:25:00]} Nxe5 {[%emt 0:26:34]} 15. dxe5 Bxg2 {[%emt 0:00:00]} 16. Kxg2 {[%emt 0:00:00]} Nd7 {[%emt 0:01:01]} 17. cxd5 {[%emt 0:00:00]} exd5 {[%emt 0:00:00]} 18. Qxd5 {[%emt 0:02:00]} c6 {[%emt 0:00:00]} 1/2-1/2